fUST/lending_fUST_20250707
["ID","MTS","AMOUNT","RATE_DAILY","PERIOD"]
[370077892,1751874740653,-1138.80399693,0.00023106,2]
[370077893,1751874740663,-223.84283041,0.00023107,2]
[370077894,1751874740673,-339.46322702,0.00023107,2]
[370077895,1751874740682,-800.95313938,0.00023107,2]
[370077896,1751874740692,-1010.35,0.00023107,2]
[370077897,1751874740701,-1191.06189686,0.00023107,2]
[370077898,1751874740711,-599.0,0.00023108,2]
[370077899,1751874740720,-545.17,0.00023108,2]
[370077900,1751874740730,-595.24,0.00023108,2]
[370077901,1751874740740,-854.06,0.00023108,2]
[370077902,1751874740749,-653.20447257,0.00023108,2]
[370077903,1751874740759,-1467.37470107,0.00023108,2]
[370077904,1751874740768,-558.73,0.00023108,2]
[370077905,1751874740778,-1277.65713167,0.00023108,2]
[370077906,1751874740788,-875.68061876,0.00023108,2]
[370077907,1751874740798,-1859.64635321,0.00023108,2]
[370077908,1751874740808,-667.61,0.00023108,2]
[370077909,1751874740817,-462.7404016,0.00023108,2]
[370077910,1751874740827,-476.31764218,0.00023109,2]
[370077911,1751874740835,-460.0,0.00023109,2]
[370077912,1751874740847,-536.82,0.00023109,2]
[370077913,1751874740856,-488.01,0.00023109,2]
[370077914,1751874740866,-1189.84,0.00023109,2]
[370077915,1751874740875,-1405.64573702,0.00023109,2]
[370077916,1751874740885,-760.81,0.00023109,2]
[370077917,1751874740896,-1793.4569763,0.00023109,2]
[370077918,1751874740906,-186.55,0.00023109,2]
[370077919,1751874740916,-801.24795535,0.00023109,2]
[370077920,1751874740926,-484.9949129,0.00023109,2]
[370077921,1751874740936,-485.56,0.00023109,2]
[370077922,1751874740949,-9292.43,0.00023109,2]
[370077923,1751874740959,-753.09161597,0.00023109,2]
[370077924,1751874740968,-2399.76,0.00023109,2]
[370077925,1751874740978,-1940.92557917,0.00023109,2]
[370077926,1751874740988,-1002.06,0.00023109,2]
[370077927,1751874740998,-1775.67657506,0.00023109,2]
[370077928,1751874741007,-833.41,0.0002311,2]
[370077929,1751874741017,-479.32,0.0002311,2]
[370077930,1751874741026,-789.97378149,0.0002311,2]
[370077931,1751874741035,-1358.96332081,0.0002311,2]
[370077932,1751874741044,-474.5,0.0002311,2]
[370077933,1751874741054,-1067.81745145,0.0002311,2]
[370077934,1751874741065,-484.5,0.0002311,2]
[370077935,1751874741075,-636.13,0.0002311,2]
[370077936,1751874741085,-1217.55697613,0.0002311,2]
[370077937,1751874741094,-599.05,0.0002311,2]
[370077938,1751874741104,-460.47,0.0002311,2]
[370077939,1751874741114,-568.87,0.0002311,2]
[370077940,1751874741124,-1142.67,0.0002311,2]
[370077941,1751874741136,-3875.56158375,0.0002311,2]
[370077942,1751874741146,-485.1,0.0002311,2]
[370077943,1751874741156,-661.71746967,0.0002311,2]
[370077944,1751874741166,-3247.16133444,0.0002311,2]
[370077945,1751874741177,-503.59,0.0002311,2]
[370077946,1751874741188,-499.18513215,0.0002311,2]
[370077947,1751874741198,-2096.69,0.0002311,2]
[370077948,1751874741208,-503.15,0.0002311,2]
[370077949,1751874741219,-305.11543707,0.0002311,2]
[370077950,1751874741232,-2875.29558747,0.0002311,2]
[370077951,1751874741246,-1143.15,0.00023112,2]
[370077952,1751874741255,-904.25437226,0.00023112,2]
[370077953,1751874741264,-196.555937,0.00023113,7]
[370077954,1751874741273,-196.555937,0.00023113,7]
[370077955,1751874741284,-471.79472361,0.00023113,2]
[370077956,1751874741294,-1952.44731812,0.00023141,8]
[370077957,1751874741303,-2359.88,0.00023145,6]
[370077958,1751874741313,-1235.13118704,0.00023162,2]
[370077959,1751874741322,-2740.94,0.000232,7]
[370077960,1751874741331,-500.0,0.00023245,2]
[370077961,1751874741341,-2359.88,0.00023245,2]
[370077962,1751874741350,-599.0,0.00023261,2]
[370077963,1751874741359,-599.0,0.00023266,2]
[370077964,1751874741369,-244.38574,0.0002329,7]
[370077965,1751874741378,-244.38574,0.0002329,7]
[370077966,1751874741387,-161.50260008,0.0002329,4]
[370077967,1751874741396,-161.50260008,0.0002329,4]
[370077968,1751874741405,-161.50260008,0.0002329,4]
[370077969,1751874741414,-161.5,0.0002329,4]
[370077970,1751874741423,-150.73576007,0.0002329,4]
[370077971,1751874741433,-150.73576007,0.0002329,4]
[370077972,1751874741442,-150.73576007,0.0002329,4]
[370077973,1751874741451,-150.73576007,0.0002329,4]
[370077974,1751874741461,-150.73576007,0.0002329,4]
[370077975,1751874741470,-150.73576007,0.0002329,4]
[370077976,1751874741479,-150.73576007,0.0002329,4]
[370077977,1751874741488,-150.73576007,0.0002329,4]
[370077978,1751874741497,-150.73576007,0.0002329,4]
[370077979,1751874741507,-150.73,0.0002329,4]
[370077980,1751874741516,-4000.0,0.00023333,4]
[370077981,1751874741527,-633.0,0.00023334,2]
[370077982,1751874741537,-2359.88,0.00023345,7]
[370077983,1751874741546,-599.0,0.00023359,2]
[370077984,1751874741556,-599.0,0.00023362,2]
[370077985,1751874741565,-316.6,0.00023371,6]
[370077986,1751874741575,-517.499024,0.00023378,2]
[370077987,1751874741584,-517.499024,0.00023378,2]
[370077988,1751874741594,-151.0,0.00023378,7]
[370077989,1751874741603,-5000.0,0.00023378,2]
[370077990,1751874741613,-25000.0,0.00023378,2]
[370077991,1751874741623,-1952.44731812,0.00023417,9]
[370077992,1751874741632,-2359.88,0.00023445,2]
[370077993,1751874741642,-2359.88,0.00023545,6]
[370077994,1751874741652,-600.0,0.00023562,2]
[370077995,1751874741662,-4220.1822831,0.00023566,2]
[370077996,1751874741671,-599.0,0.00023585,2]
[370077997,1751874741681,-168.0,0.00023606,2]
[370077998,1751874741690,-599.0,0.00023608,2]
[370077999,1751874741701,-599.0,0.00023627,2]
[370078000,1751874741711,-976.561,0.00023634,2]
[370078001,1751874741720,-2153.0,0.00023634,2]
[370078002,1751874741730,-646.0,0.00023634,2]
[370078003,1751874741739,-406.0,0.00023634,2]
[370078004,1751874741749,-429.128,0.00023634,2]
[370078005,1751874741758,-2359.88,0.00023645,7]
[370078006,1751874741768,-215.0738,0.00023651,2]
[370078007,1751874741778,-1952.44731812,0.00023693,9]
[370078008,1751874741788,-153.15641288,0.00023699,2]
[370078009,1751874741797,-171.4720814,0.00023699,2]
[370078010,1751874741806,-316.6,0.00023703,6]
[370078011,1751874741816,-160.0,0.00023707,3]
[370078012,1751874741826,-628.0,0.00023709,2]
[370078013,1751874741835,-500.0,0.00023719,2]
[370078014,1751874741845,-2359.88,0.00023745,7]
[370078015,1751874741854,-153.15641288,0.00023808,2]
[370078016,1751874741863,-2359.88,0.00023845,4]
[370078017,1751874741872,-1284.0,0.00023857,2]
[370078018,1751874741882,-7331.01962231,0.000239,2]
[370078019,1751874741892,-153.15641288,0.00023918,2]
[370078020,1751874741901,-153.0,0.00023918,2]
[370078021,1751874741911,-153.0,0.00023918,2]
[370078022,1751874741921,-153.0,0.00023918,2]
[370078023,1751874741930,-153.0,0.00023918,2]
[370078024,1751874741939,-5000.0,0.00023926,2]
[370078025,1751874741949,-1152.0,0.00023932,2]
[370078026,1751874741958,-2359.88,0.00023945,2]
[370078027,1751874741968,-1952.44731812,0.00023969,10]
[370078028,1751874741977,-306.0,0.00023973,2]
[370078029,1751874741987,-153.0,0.00023973,2]
[370078030,1751874741996,-153.0,0.00023973,2]
[370078031,1751874742006,-1000.0,0.00024,24]
[370078032,1751874742016,-160.0,0.00024,7]
[370078033,1751874742026,-160.0,0.00024,10]
[370078034,1751874742036,-230.48668418,0.00024,7]
[370078035,1751874742045,-230.48668418,0.00024,10]
[370078036,1751874742055,-160.0,0.00024,7]
[370078037,1751874742065,-160.0,0.00024,10]
[370078038,1751874742074,-215.21338352,0.00024,7]
[370078039,1751874742084,-215.21338352,0.00024,10]
[370078040,1751874742093,-160.0,0.00024,7]
[370078041,1751874742102,-160.0,0.00024,10]
[370078042,1751874742112,-837.79946008,0.00024,7]
[370078043,1751874742122,-837.79946008,0.00024,10]
[370078044,1751874742131,-171.4720814,0.00024027,2]
[370078045,1751874742141,-316.6,0.00024035,6]
[370078046,1751874742150,-2359.88,0.00024045,7]
[370078047,1751874742160,-153.15641288,0.00024055,2]
[370078048,1751874742169,-168.0,0.00024088,2]
[370078049,1751874742178,-168.0,0.00024092,2]
[370078050,1751874742187,-3600.55,0.000241,7]
[370078051,1751874742197,-764.08490768,0.0002411,2]
[370078052,1751874742207,-168.0,0.00024135,2]
[370078053,1751874742216,-2359.88,0.00024145,2]
[370078054,1751874742225,-153.15641288,0.00024164,2]
[370078055,1751874742238,-174.0,0.00024164,7]
[370078056,1751874742415,-2135.0,0.00024194,2]
[370078057,1751874742427,-120391.69,0.000242,2]
[370078058,1751874742437,-53889.05,0.000242,7]
[370078059,1751874742446,-151.0,0.000242,7]
[370078060,1751874742455,-151.0,0.000242,7]
[370078061,1751874742464,-151.0,0.000242,7]
[370078062,1751874742474,-151.0,0.000242,7]
[370078063,1751874742483,-151.0,0.000242,7]
[370078064,1751874742492,-1952.44731812,0.00024245,10]
[370078065,1751874742502,-2359.88,0.00024245,4]
[370078066,1751874742511,-153.15641288,0.00024274,2]
[370078067,1751874742520,-250.0133146,0.00024329,2]
[370078068,1751874742529,-165.91991477,0.00024329,2]
[370078069,1751874742538,-171.4720814,0.00024329,2]
[370078070,1751874742547,-2359.88,0.00024345,7]
[370078071,1751874742557,-316.6,0.00024367,7]
[370078072,1751874742566,-153.15641288,0.00024384,2]
[370078073,1751874742575,-531.0,0.00024385,2]
[370078074,1751874742584,-3967.07919496,0.0002439,2]
[370078075,1751874742594,-2740.94,0.000244,7]
[370078076,1751874742603,-1564.375171,0.00024401,4]
[370078077,1751874742612,-500.0,0.00024407,2]
[370078078,1751874742622,-2359.88,0.00024445,5]
[370078079,1751874742631,-4220.1822831,0.00024468,2]
[370078080,1751874742641,-5000.0,0.00024474,2]
[370078081,1751874742650,-153.15641288,0.00024493,2]
[370078082,1751874742659,-9781.80335578,0.000245,2]
[370078083,1751874742669,-200.0,0.000245,2]
[370078084,1751874742679,-1952.44731812,0.00024521,11]
[370078085,1751874742688,-2359.88,0.00024545,7]
[370078086,1751874742698,-512.7884035,0.00024568,2]
[370078087,1751874742707,-153.15641288,0.00024603,2]
[370078088,1751874742717,-5225.0,0.00024636,2]
[370078089,1751874742727,-2359.88,0.00024645,3]
[370078090,1751874742736,-76028.12985717,0.0002465,2]
[370078091,1751874742746,-501.10567785,0.0002465,2]
[370078092,1751874742758,-171.4720814,0.00024658,2]
[370078093,1751874742769,-316.6,0.00024699,7]
[370078094,1751874742779,-153.15641288,0.0002474,2]
[370078095,1751874742789,-153.0,0.0002474,2]
[370078096,1751874742800,-153.0,0.0002474,2]
[370078097,1751874742809,-177.2777917,0.0002474,2]
[370078098,1751874742819,-153.0,0.0002474,2]
[370078099,1751874742827,-153.0,0.0002474,2]
[370078100,1751874742837,-2359.88,0.00024745,6]
[370078101,1751874742846,-200.0,0.0002479,12]
[370078102,1751874742857,-1952.44731812,0.00024797,11]
[370078103,1751874742866,-125639.28311614,0.000248,7]
[370078104,1751874742881,-1034.00961032,0.000248,7]
[370078105,1751874743100,-300.0,0.00016803,2]
[370078106,1751874743116,-160.0,0.00016803,2]
[370078107,1751874743126,-460.0,0.00016808,2]
[370078108,1751874743135,-460.0,0.00017082,2]
[370078109,1751874743289,-151.0,0.00022282,2]
[370078110,1751874743299,-151.0,0.00022282,2]
[370078111,1751874743308,-151.0,0.00022282,2]
[370078112,1751874743318,-151.0,0.00022282,2]
[370078113,1751874743327,-144.246198,0.00022282,2]
[370078114,1751874743339,-6.753802,0.00022282,2]
[370078115,1751874743350,-151.0,0.00022282,2]
[370078116,1751874743359,-151.0,0.00022282,2]
[370078117,1751874743369,-151.0,0.00022282,2]
[370078118,1751874743378,-151.0,0.00022282,2]
[370078119,1751874743388,-151.0,0.00022282,2]
[370078120,1751874743398,-157.6180995,0.00022282,2]
[370078121,1751874743407,-195.35678219,0.00022282,2]
[370078122,1751874743417,-507.53755967,0.00022287,2]
[370078123,1751874743429,-2288.65244033,0.00022287,2]
[370078124,1751874743439,-2796.19,0.00022561,2]
[370078125,1751874743448,-1180.05312392,0.00022835,2]
[370078126,1751874743743,-460.0,0.00016803,2]
[370078127,1751874743753,-40.0,0.00016803,2]
[370078128,1751874743767,-304.71651119,0.00016803,2]
[370078129,1751874743779,-1514.60348881,0.00016803,2]
[370078130,1751874743789,-460.0,0.00016807,2]
[370078131,1751874743798,-460.0,0.00016808,2]
[370078132,1751874743808,-460.0,0.00016808,2]
[370078133,1751874743818,-460.0,0.00017077,2]
[370078134,1751874743828,-159.26821546,0.00017351,2]
[370078135,1751874743838,-1616.13687608,0.00022835,2]
[370078136,1751874743848,-160.0,0.000231,3]
[370078137,1751874743858,-160.0,0.000231,3]
[370078138,1751874743868,-2796.27346171,0.00023109,2]
[370078139,1751874743878,-23774.16467433,0.000248,7]
[370078140,1751874743887,-196.555937,0.000248,7]
[370078141,1751874743897,-196.555937,0.000248,7]
[370078142,1751874743906,-244.38574,0.000248,7]
[370078143,1751874743916,-244.38574,0.000248,7]
[370078144,1751874743926,-188.794197,0.000248,2]
[370078145,1751874743936,-153.0,0.00024822,2]
[370078146,1751874743945,-2359.88,0.00024845,2]
[370078147,1751874743955,-153.15641288,0.00024849,2]
[370078148,1751874743964,-501.36,0.000249,60]
[370078149,1751874743974,-151.0,0.000249,7]
[370078150,1751874743983,-151.0,0.000249,7]
[370078151,1751874743992,-151.0,0.000249,7]
[370078152,1751874744002,-151.0,0.000249,7]
[370078153,1751874744011,-2072.19628372,0.000249,2]
[370078154,1751874744020,-196.555937,0.000249,7]
[370078155,1751874744030,-196.555937,0.000249,7]
[370078156,1751874744039,-168.467493,0.000249,7]
[370078157,1751874744049,-244.38574,0.000249,7]
[370078158,1751874744059,-244.38574,0.000249,7]
[370078159,1751874744068,-151.0,0.000249,7]
[370078160,1751874744078,-151.0,0.000249,7]
[370078161,1751874744088,-517.499024,0.000249,2]
[370078162,1751874744097,-517.499024,0.000249,2]
[370078163,1751874744107,-151.0,0.000249,7]
[370078164,1751874744116,-272.41057525,0.000249,2]
[370078165,1751874744128,-12664.57589156,0.000249,2]
[370078166,1751874744144,-460.0,0.00017082,2]
[370078167,1751874744153,-7413.5966592,0.000249,2]
[370078168,1751874744567,5000.0,0.00016801,2]
[370078169,1751874748529,170240.96039893,0.00016705,2]
[370078170,1751874761543,5000.0,0.000176,6]
[370078171,1751874781258,-163.25735844,0.00016803,2]
[370078172,1751874783399,178.96768194,0.00016703,2]
[370078173,1751874784131,-300.0,0.00016802,2]
[370078174,1751874784153,-14.74264156,0.00016803,2]
[370078175,1751874787082,-176.53784178,0.00016803,2]
[370078176,1751874790062,-105.46215822,0.00016803,2]
[370078177,1751874790085,-210.49964705,0.00016803,2]
[370078178,1751874815960,-176.01737073,0.00016802,2]
[370078179,1751874817815,-160.40622917,0.00016802,2]
[370078180,1751874820295,-123.5764001,0.00016802,2]
[370078181,1751874820317,-223.05764756,0.00016802,2]
[370078182,1751874822444,-287.85263599,0.00016802,2]
[370078183,1751874828422,-172.14736401,0.00016802,2]
[370078184,1751874828446,-32.77083072,0.00016802,2]
[370078185,1751874830920,-315.87581546,0.00016802,2]
[370078186,1751874835697,-111.35335382,0.00016802,2]
[370078187,1751874835719,-189.43745244,0.00016802,2]
[370078188,1751874837715,-250.83745572,0.00016802,2]
[370078189,1751874842656,-19.72509184,0.00016802,2]
[370078190,1751874842680,-71.28973072,0.00016803,2]
[370078191,1751874842702,-156.371078,0.00016803,2]
[370078192,1751874844090,2147.03294178,0.00016705,2]
[370078193,1751874844420,-281.78937777,0.00016802,2]
[370078194,1751874845499,269.38595473,0.00016652,2]
[370078195,1751874904763,300.0,0.00016801,2]
[370078197,1751874962390,300.0,0.00016801,2]
[370078198,1751874965973,-178.21062223,0.00016802,2]
[370078199,1751874965996,-80.04361612,0.00016802,2]
[370078200,1751874968982,-379.95638388,0.00016802,2]
[370078201,1751874969003,-89.28711073,0.00016802,2]
[370078202,1751874972165,-281.78937777,0.00016802,2]
[370078203,1751874979609,511.64,0.00016801,2]
[370078204,1751874999291,460.0,0.00016801,2]
[370078205,1751875006063,353.01363352,0.00016704,2]
[370078206,1751875016553,460.0,0.00016801,2]
[370078207,1751875029634,460.0,0.00016801,2]
[370078208,1751875044931,4354.87,0.00016801,2]
[370078209,1751875047324,-281.78937777,0.00016802,2]
[370078210,1751875071214,476.31764218,0.00016801,2]
[370078211,1751875083047,300.0,0.00016801,2]
[370078212,1751875090719,460.0,0.00016801,2]
[370078213,1751875100289,929.32217383,0.00016702,2]
[370078214,1751875113197,225.24450579,0.00016801,2]
[370078217,1751875116289,460.0,0.00016801,2]
[370078218,1751875117065,500.0,0.00016801,2]
[370078219,1751875117097,500.0,0.00016801,2]
[370078220,1751875117128,501.7171862,0.00016801,2]
[370078221,1751875117160,500.0,0.00016801,2]
[370078222,1751875117193,500.0,0.00016801,2]
[370078223,1751875117223,592.76971742,0.00016801,2]
[370078224,1751875117252,500.0,0.00016801,2]
[370078225,1751875117285,202.21342249,0.00016801,2]
[370078226,1751875117318,500.0,0.00016801,2]
[370078227,1751875117350,414.1242927,0.00016801,2]
[370078228,1751875117382,253.2530812,0.00016801,2]
[370078229,1751875117414,500.0,0.00016801,2]
[370078230,1751875117443,325.10722614,0.00016801,2]
[370078231,1751875117475,500.0,0.00016801,2]
[370078232,1751875117511,562.93376734,0.00016801,2]
[370078233,1751875117546,500.0,0.00016801,2]
[370078234,1751875117579,263.18665234,0.00016801,2]
[370078235,1751875117615,500.0,0.00016801,2]
[370078236,1751875117646,500.0,0.00016801,2]
[370078237,1751875117863,500.0,0.00016801,2]
[370078238,1751875117893,500.0,0.00016801,2]
[370078239,1751875117924,500.0,0.00016801,2]
[370078240,1751875117959,500.0,0.00016801,2]
[370078241,1751875117989,500.0,0.00016801,2]
[370078242,1751875118029,500.0,0.00016801,2]
[370078243,1751875118058,462.15206406,0.00016801,2]
[370078244,1751875118087,500.0,0.00016801,2]
[370078245,1751875118120,500.0,0.00016801,2]
[370078246,1751875118152,500.0,0.00016801,2]
[370078247,1751875118186,500.0,0.00016801,2]
[370078248,1751875118221,500.0,0.00016801,2]
[370078249,1751875118253,335.49271879,0.00016801,2]
[370078250,1751875118288,500.0,0.00016801,2]
[370078251,1751875118325,297.22199335,0.00016801,2]
[370078252,1751875118358,500.0,0.00016801,2]
[370078253,1751875118389,568.53804535,0.00016801,2]
[370078254,1751875118429,500.0,0.00016801,2]
[370078255,1751875118460,500.0,0.00016801,2]
[370078256,1751875118504,500.0,0.00016801,2]
[370078257,1751875118538,500.0,0.00016801,2]
[370078258,1751875118584,500.0,0.00016801,2]
[370078259,1751875118618,500.0,0.00016801,2]
[370078260,1751875118655,500.0,0.00016801,2]
[370078261,1751875118765,-281.78937777,0.00016802,2]
[370078262,1751875129442,460.0,0.00016801,2]
[370078263,1751875132565,3166.27,0.00016801,2]
[370078264,1751875133196,-281.78937777,0.00016802,2]
[370078265,1751875136880,460.0,0.00016801,2]
[370078266,1751875150633,460.0,0.00016801,2]
[370078267,1751875151249,395.55478489,0.00016801,2]
[370078268,1751875157555,298.32,0.00016794,3]
[370078269,1751875163429,481.30687761,0.00016801,2]
[370078270,1751875165075,460.0,0.00016801,2]
[370078271,1751875167998,894.96,0.00016794,3]
[370078272,1751875168604,370000.0,0.00016704,2]
[370078273,1751875170761,501.17767796,0.00016801,2]
[370078274,1751875171898,203.45626906,0.00016702,2]
[370078275,1751875173865,460.0,0.00016801,2]
[370078276,1751875176285,460.0,0.00016801,2]
[370078277,1751875183393,1873.6847161,0.00015805,2]
[370078278,1751875183980,461.08103845,0.00016801,2]
[370078279,1751875185789,460.0,0.00016801,2]
[370078280,1751875188843,460.0,0.00016801,2]
[370078281,1751875191647,3673.4,0.00016801,2]
[370078282,1751875197018,460.0,0.00016801,2]
[370078283,1751875198173,500.0,0.00016801,2]
[370078284,1751875198229,500.0,0.00016801,2]
[370078285,1751875198285,461.2391283,0.00016801,2]
[370078286,1751875198318,500.0,0.00016801,2]
[370078287,1751875198356,500.0,0.00016801,2]
[370078288,1751875198567,431.44310058,0.00016801,2]
[370078289,1751875198997,-281.78937777,0.00016802,2]
[370078290,1751875202853,300.0,0.00016801,2]
[370078291,1751875203108,1200.0,0.00016801,2]
[370078292,1751875206480,-281.78937777,0.00016802,2]
[370078293,1751875211124,2122.17,0.00016801,2]
[370078294,1751875211458,207.2708351,0.00015805,2]
[370078296,1751875216322,165.456041,0.00013699,2]
[370078297,1751875217692,460.0,0.00016801,2]
[370078298,1751875222207,460.0,0.00016801,2]
[370078299,1751875223137,470.10525248,0.00016801,2]
[370078300,1751875223290,460.0,0.00016801,2]
[370078301,1751875223918,-160.0,0.00016802,2]
[370078302,1751875223942,-88.9235115,0.00016802,2]
[370078303,1751875223965,-32.86586627,0.00016802,2]
[370078304,1751875224503,500.0,0.00016801,2]
[370078305,1751875224565,611.5,0.00016801,2]
[370078306,1751875225404,460.0,0.00016801,2]
[370078307,1751875225562,284.61273244,0.00016801,2]
[370078308,1751875226249,162.35990315,0.00016801,2]
[370078309,1751875226327,500.0,0.00016801,2]
[370078310,1751875226376,500.0,0.00016801,2]
[370078311,1751875226440,335.77060384,0.00016801,2]
[370078312,1751875227983,460.0,0.00016801,2]
[370078313,1751875232823,460.0,0.00016801,2]
[370078314,1751875233197,151.0,0.00016793,2]
[370078315,1751875233729,460.0,0.00016801,2]
[370078316,1751875234515,460.0,0.00016801,2]
[370078317,1751875234794,-281.78937777,0.00016802,2]
[370078318,1751875235226,460.0,0.00016801,2]
[370078319,1751875239509,460.0,0.00016801,2]
[370078320,1751875240185,168.66061209,0.00016801,2]
[370078321,1751875241588,203.15289265,0.00016801,2]
[370078322,1751875242395,377.65742248,0.00016801,2]
[370078323,1751875243047,960.93,0.00016801,2]
[370078324,1751875244117,500.0,0.00016801,2]
[370078325,1751875250273,460.0,0.00016801,2]
[370078326,1751875258401,590.02499483,0.00016801,2]
[370078327,1751875260494,460.0,0.00016801,2]
[370078328,1751875260532,460.0,0.00016801,2]
[370078329,1751875261926,500.0,0.00016801,2]
[370078330,1751875261976,500.0,0.00016801,2]
[370078331,1751875262030,500.0,0.00016801,2]
[370078332,1751875262335,460.0,0.00016801,2]
[370078333,1751875263035,-281.78937777,0.00016802,2]
[370078334,1751875263481,300.0,0.00016801,2]
[370078335,1751875264594,460.0,0.00016801,2]
[370078336,1751875266492,460.0,0.00016801,2]
[370078337,1751875268697,460.0,0.00016801,2]
[370078338,1751875270628,1200.0,0.00016801,2]
[370078339,1751875271537,460.0,0.00016801,2]
[370078340,1751875272053,460.0,0.00016801,2]
[370078341,1751875275017,501.0487141,0.00016801,2]
[370078342,1751875275737,460.0,0.00016801,2]
[370078343,1751875276978,4550.29,0.00016801,2]
[370078344,1751875277122,500.60900104,0.00016801,2]
[370078345,1751875278135,460.0,0.00016801,2]
[370078346,1751875282581,460.0,0.00016801,2]
[370078347,1751875285302,460.0,0.00016801,2]
[370078348,1751875285379,460.30962934,0.00016801,2]
[370078349,1751875286991,458.77272374,0.00016801,2]
[370078350,1751875287121,-281.78937777,0.00016802,2]
[370078351,1751875287924,460.0,0.00016801,2]
[370078352,1751875289845,460.0,0.00016801,2]
[370078353,1751875290078,460.0,0.00016801,2]
[370078354,1751875290134,460.0,0.00016801,2]
[370078355,1751875290953,813.15690211,0.00016702,2]
[370078356,1751875291663,460.0,0.00016801,2]
[370078357,1751875292390,200.0,0.00025406,120]
[370078358,1751875295209,460.0,0.00016801,2]
[370078359,1751875295666,460.0,0.00016801,2]
[370078360,1751875295823,460.0,0.00016801,2]
[370078361,1751875297787,460.0,0.00016801,2]
[370078362,1751875297953,460.0,0.00016801,2]
[370078363,1751875298537,-281.78937777,0.00016802,2]
[370078364,1751875302166,150.50456212,0.00016801,2]
[370078365,1751875302475,460.0,0.00016801,2]
[370078366,1751875316657,460.0,0.00016801,2]
[370078367,1751875320952,418.56414791,0.00016801,2]
[370078368,1751875322364,460.0,0.00016801,2]
[370078369,1751875324667,55674.84099017,0.00016702,2]
[370078370,1751875324786,300.0,0.00016801,2]
[370078371,1751875325541,598.63839924,0.00016801,2]
[370078372,1751875327888,460.0,0.00016801,2]
[370078373,1751875329990,213.99977745,0.00016801,2]
[370078374,1751875330023,500.0,0.00016801,2]
[370078375,1751875330054,500.0,0.00016801,2]
[370078376,1751875330084,500.0,0.00016801,2]
[370078377,1751875330116,500.0,0.00016801,2]
[370078378,1751875330147,500.0,0.00016801,2]
[370078379,1751875330177,500.0,0.00016801,2]
[370078380,1751875330209,500.0,0.00016801,2]
[370078381,1751875330248,500.0,0.00016801,2]
[370078382,1751875330278,500.0,0.00016801,2]
[370078383,1751875330311,304.67416712,0.00016801,2]
[370078384,1751875330342,500.0,0.00016801,2]
[370078385,1751875330373,500.0,0.00016801,2]
[370078386,1751875330408,500.0,0.00016801,2]
[370078387,1751875330438,511.83500045,0.00016801,2]
[370078388,1751875330493,500.0,0.00016801,2]
[370078389,1751875330564,500.0,0.00016801,2]
[370078390,1751875330601,500.0,0.00016801,2]
[370078391,1751875330636,500.0,0.00016801,2]
[370078392,1751875330669,500.0,0.00016801,2]
[370078393,1751875330704,500.0,0.00016801,2]
[370078394,1751875330740,500.0,0.00016801,2]
[370078395,1751875331003,460.0,0.00016801,2]